fUST/lending_fUST_20250929
["ID","MTS","AMOUNT","RATE_DAILY","PERIOD"]
[388335123,1759103445074,-480.0,0.0002756,7]
[388335124,1759103445083,-3139.08,0.0002756,7]
[388335125,1759103445092,-919.0,0.0002756,7]
[388335127,1759103445101,-480.0,0.0002756,7]
[388335129,1759103445110,-480.0,0.0002756,7]
[388335131,1759103445120,-828.94,0.0002756,7]
[388335132,1759103445129,-151.0,0.0002756,7]
[388335134,1759103445138,-3618.93,0.0002756,7]
[388335136,1759103445147,-867.4,0.0002756,7]
[388335138,1759103445157,-151.0,0.000276,12]
[388335139,1759103445166,-151.0,0.000276,15]
[388335140,1759103445176,-154.417876,0.00027661,7]
[388335141,1759103445186,-151.0,0.00027661,7]
[388335142,1759103445195,-294.793592,0.00027661,7]
[388335143,1759103445204,-151.0,0.00027661,7]
[388335144,1759103445214,-151.0,0.00027661,7]
[388335145,1759103445223,-169.594318,0.00027661,7]
[388335146,1759103445232,-480.0,0.00027671,7]
[388335147,1759103445241,-641.72,0.00027671,7]
[388335148,1759103445250,-788.32,0.00027671,7]
[388335149,1759103445260,-480.0,0.00027671,7]
[388335150,1759103445269,-480.0,0.00027671,7]
[388335151,1759103445278,-480.0,0.00027671,7]
[388335152,1759103445287,-480.0,0.00027671,7]
[388335154,1759103445296,-497.05,0.00027671,7]
[388335156,1759103445305,-231.42498517,0.00027671,7]
[388335158,1759103445315,-480.0,0.00027671,7]
[388335160,1759103445324,-480.0,0.00027671,7]
[388335162,1759103445333,-480.0,0.00027671,7]
[388335164,1759103445342,-822.62,0.00027671,7]
[388335166,1759103445352,-480.0,0.00027671,7]
[388335168,1759103445361,-480.0,0.00027671,7]
[388335170,1759103445370,-480.0,0.00027671,7]
[388335172,1759103445379,-480.0,0.00027671,7]
[388335174,1759103445389,-480.0,0.00027671,7]
[388335176,1759103445398,-150.95642939,0.00027671,7]
[388335178,1759103445407,-480.0,0.00027671,7]
[388335180,1759103445417,-680.72,0.00027671,7]
[388335182,1759103445427,-500.0,0.00027671,7]
[388335184,1759103445437,-924.85,0.00027671,7]
[388335186,1759103445445,-565.21,0.00027671,7]
[388335188,1759103445454,-532.30099239,0.00027671,7]
[388335190,1759103445464,-480.0,0.00027671,7]
[388335192,1759103445473,-535.39,0.00027671,7]
[388335194,1759103445482,-499.82,0.00027671,7]
[388335196,1759103445491,-480.0,0.00027671,7]
[388335198,1759103445501,-480.0,0.00027671,7]
[388335200,1759103445510,-670.03,0.00027671,7]
[388335202,1759103445519,-480.0,0.00027671,7]
[388335204,1759103445528,-480.0,0.00027671,7]
[388335206,1759103445537,-480.0,0.00027671,7]
[388335208,1759103445546,-480.0,0.00027671,7]
[388335210,1759103445555,-516.11,0.00027671,7]
[388335212,1759103445564,-480.0,0.00027671,7]
[388335214,1759103445573,-480.0,0.00027671,7]
[388335216,1759103445582,-480.0,0.00027671,7]
[388335218,1759103445591,-480.0,0.00027671,7]
[388335220,1759103445600,-480.0,0.00027671,7]
[388335222,1759103445609,-480.0,0.00027671,7]
[388335224,1759103445620,-626.56,0.00027671,7]
[388335226,1759103445629,-480.0,0.00027671,7]
[388335228,1759103445638,-480.0,0.00027671,7]
[388335230,1759103445647,-515.84,0.00027671,7]
[388335232,1759103445657,-853.44,0.00027671,7]
[388335234,1759103445666,-616.75,0.00027671,7]
[388335236,1759103445675,-151.0,0.00027671,7]
[388335238,1759103445684,-591.3,0.00027671,7]
[388335240,1759103445693,-480.0,0.00027671,7]
[388335242,1759103445702,-480.0,0.00027671,7]
[388335244,1759103445712,-480.0,0.00027671,7]
[388335246,1759103445721,-592.77,0.00027671,7]
[388335248,1759103445730,-480.0,0.00027671,7]
[388335250,1759103445739,-480.0,0.00027671,7]
[388335252,1759103445748,-513.59,0.00027671,7]
[388335254,1759103445757,-605.55,0.00027671,7]
[388335256,1759103445765,-480.0,0.00027671,7]
[388335258,1759103445776,-580.32,0.00027671,7]
[388335260,1759103445785,-1100.81,0.00027671,7]
[388335262,1759103445793,-662.87,0.00027671,7]
[388335264,1759103445802,-480.0,0.00027671,7]
[388335266,1759103445811,-480.0,0.00027671,7]
[388335268,1759103445822,-839.69,0.00027671,7]
[388335270,1759103445831,-480.0,0.00027671,7]
[388335272,1759103445841,-480.0,0.00027671,7]
[388335274,1759103445850,-480.0,0.00027671,7]
[388335276,1759103445859,-480.0,0.00027671,7]
[388335278,1759103445868,-480.0,0.00027671,7]
[388335280,1759103445879,-480.0,0.00027671,7]
[388335282,1759103445893,-480.0,0.00027671,7]
[388335284,1759103445910,-480.0,0.00027671,7]
[388335286,1759103445920,-550.92,0.00027671,7]
[388335288,1759103445929,-873.96,0.00027671,7]
[388335290,1759103445939,-480.0,0.00027671,7]
[388335292,1759103445948,-480.0,0.00027671,7]
[388335294,1759103445957,-480.0,0.00027671,7]
[388335296,1759103445966,-480.0,0.00027671,7]
[388335298,1759103445976,-480.0,0.00027671,7]
[388335300,1759103445984,-777.05,0.00027671,7]
[388335302,1759103445994,-400.0,0.00027671,7]
[388335304,1759103446003,-784.66,0.00027671,7]
[388335306,1759103446011,-735.1,0.00027671,7]
[388335308,1759103446021,-480.0,0.00027671,7]
[388335310,1759103446030,-993.78,0.00027671,7]
[388335312,1759103446039,-480.0,0.00027671,7]
[388335314,1759103446048,-480.0,0.00027671,7]
[388335316,1759103446057,-1057.12,0.00027671,7]
[388335318,1759103446066,-589.58,0.00027671,7]
[388335320,1759103446075,-480.0,0.00027671,7]
[388335322,1759103446083,-1130.79,0.00027671,7]
[388335324,1759103446093,-480.0,0.00027671,7]
[388335326,1759103446102,-1262.46,0.00027671,7]
[388335328,1759103446111,-1564.71,0.00027671,7]
[388335330,1759103446120,-480.0,0.00027671,7]
[388335332,1759103446129,-480.0,0.00027671,7]
[388335334,1759103446138,-1337.31,0.00027671,7]
[388335336,1759103446147,-480.0,0.00027671,7]
[388335338,1759103446156,-409.00415831,0.00027671,7]
[388335340,1759103446165,-1086.26,0.00027671,7]
[388335342,1759103446174,-589.16,0.00027671,7]
[388335344,1759103446184,-480.0,0.00027671,7]
[388335346,1759103446193,-480.0,0.00027671,7]
[388335348,1759103446203,-514.97,0.00027671,7]
[388335350,1759103446212,-480.0,0.00027671,7]
[388335352,1759103446221,-771.3,0.00027671,7]
[388335354,1759103446230,-2949.58,0.00027671,7]
[388335356,1759103446239,-480.0,0.00027671,7]
[388335358,1759103446247,-480.0,0.00027671,7]
[388335360,1759103446256,-1918.75,0.00027671,7]
[388335361,1759103446265,-480.0,0.00027671,7]
[388335363,1759103446275,-480.0,0.00027671,7]
[388335365,1759103446284,-480.0,0.00027671,7]
[388335367,1759103446294,-480.0,0.00027671,7]
[388335369,1759103446303,-1564.8,0.00027671,7]
[388335371,1759103446312,-480.0,0.00027671,7]
[388335373,1759103446321,-480.0,0.00027671,7]
[388335375,1759103446331,-513.60198346,0.00027671,7]
[388335377,1759103446340,-480.0,0.00027671,7]
[388335380,1759103446349,-480.0,0.00027671,7]
[388335382,1759103446358,-323.77630097,0.00027671,7]
[388335384,1759103446367,-540.81,0.00027671,7]
[388335386,1759103446376,-480.0,0.00027671,7]
[388335387,1759103446386,-518.24,0.00027671,7]
[388335389,1759103446395,-500.0,0.00027671,7]
[388335392,1759103446403,-845.77,0.00027671,7]
[388335394,1759103446414,-808.67,0.00027671,7]
[388335395,1759103446423,-480.0,0.00027671,7]
[388335398,1759103446433,-261.9011164,0.00027671,7]
[388335400,1759103446443,-767.94,0.00027671,7]
[388335401,1759103446451,-480.0,0.00027671,7]
[388335403,1759103446460,-695.12,0.00027671,7]
[388335405,1759103446470,-480.0,0.00027671,7]
[388335408,1759103446479,-531.24,0.00027671,7]
[388335409,1759103446488,-1385.84,0.00027671,7]
[388335411,1759103446497,-901.97,0.00027671,7]
[388335413,1759103446505,-480.0,0.00027671,7]
[388335415,1759103446515,-480.0,0.00027671,7]
[388335417,1759103446524,-3317.91,0.00027671,7]
[388335419,1759103446534,-480.0,0.00027671,7]
[388335421,1759103446543,-785.05,0.00027671,7]
[388335424,1759103446552,-1474.69,0.00027671,7]
[388335426,1759103446562,-1430.69,0.00027671,7]
[388335427,1759103446571,-400.23190222,0.00027671,7]
[388335430,1759103446580,-480.0,0.00027671,7]
[388335431,1759103446589,-1329.27,0.00027671,7]
[388335434,1759103446598,-480.0,0.00027671,7]
[388335435,1759103446608,-934.42,0.00027671,7]
[388335437,1759103446617,-932.68,0.00027671,7]
[388335440,1759103446627,-689.5,0.00027671,7]
[388335441,1759103446637,-571.2,0.00027671,7]
[388335443,1759103446646,-480.0,0.00027671,7]
[388335445,1759103446655,-844.72,0.00027671,7]
[388335447,1759103446665,-480.0,0.00027671,7]
[388335450,1759103446675,-695.38,0.00027671,7]
[388335451,1759103446684,-480.0,0.00027671,7]
[388335454,1759103446694,-259.96779115,0.00027671,7]
[388335456,1759103446703,-480.0,0.00027671,7]
[388335458,1759103446712,-480.0,0.00027671,7]
[388335460,1759103446721,-480.0,0.00027671,7]
[388335461,1759103446730,-1055.79,0.00027671,7]
[388335463,1759103446739,-2117.59,0.00027671,7]
[388335465,1759103446749,-480.0,0.00027671,7]
[388335467,1759103446758,-480.0,0.00027671,7]
[388335469,1759103446767,-480.0,0.00027671,7]
[388335471,1759103446777,-808.3,0.00027671,7]
[388335473,1759103446786,-1136.38,0.00027671,7]
[388335475,1759103446795,-480.0,0.00027671,7]
[388335477,1759103446805,-1374.0,0.00027671,7]
[388335480,1759103446814,-651.29,0.00027671,7]
[388335481,1759103446823,-480.0,0.00027671,7]
[388335484,1759103446832,-1146.02,0.00027671,7]
[388335485,1759103446842,-480.0,0.00027671,7]
[388335487,1759103446851,-480.0,0.00027671,7]
[388335489,1759103446860,-480.0,0.00027671,7]
[388335492,1759103446870,-480.0,0.00027671,7]
[388335493,1759103446880,-726.35,0.00027671,7]
[388335495,1759103446894,-1354.28,0.00027671,7]
[388335498,1759103446903,-812.09,0.00027671,7]
[388335500,1759103446912,-2168.38,0.00027671,7]
[388335501,1759103446922,-480.0,0.00027671,7]
[388335504,1759103446931,-2804.71,0.00027671,7]
[388335506,1759103446942,-598.32,0.00027671,7]
[388335508,1759103446951,-579.15,0.00027671,7]
[388335510,1759103446961,-480.0,0.00027671,7]
[388335511,1759103446970,-480.0,0.00027671,7]
[388335514,1759103446980,-2231.62,0.00027671,7]
[388335516,1759103446989,-814.75,0.00027671,7]
[388335517,1759103446998,-330.56792488,0.00027671,7]
[388335519,1759103447007,-973.37,0.00027671,7]
[388335521,1759103447016,-480.0,0.00027671,7]
[388335524,1759103447026,-480.0,0.00027671,7]
[388335526,1759103447036,-728.76,0.00027671,7]
[388335528,1759103447045,-516.5,0.00027671,7]
[388335530,1759103447054,-780.32,0.00027671,7]
[388335531,1759103447063,-602.47,0.00027671,7]
[388335533,1759103447072,-480.0,0.00027671,7]
[388335536,1759103447082,-512.45,0.00027671,7]
[388335537,1759103447091,-1037.42,0.00027671,7]
[388335539,1759103447100,-1247.97,0.00027671,7]
[388335541,1759103447109,-1880.3,0.00027671,7]
[388335543,1759103447118,-849.93,0.00027671,7]
[388335545,1759103447127,-898.56,0.00027671,7]
[388335547,1759103447136,-480.0,0.00027671,7]
[388335549,1759103447146,-480.0,0.00027671,7]
[388335552,1759103447155,-480.0,0.00027671,7]
[388335554,1759103447164,-480.0,0.00027671,7]
[388335556,1759103447173,-678.02,0.00027671,7]
[388335558,1759103447182,-1778.28,0.00027671,7]
[388335560,1759103447192,-2379.83,0.00027671,7]
[388335562,1759103447202,-5954.8,0.00027671,3]
[388335564,1759103447212,-794.46,0.00027671,7]
[388335566,1759103447221,-480.0,0.00027671,7]
[388335568,1759103447230,-480.0,0.00027671,7]
[388335570,1759103447239,-1055.28,0.00027671,7]
[388335572,1759103447248,-782.33,0.00027671,7]
[388335573,1759103447257,-1175.56,0.00027671,7]
[388335575,1759103447267,-480.0,0.00027671,7]
[388335577,1759103447276,-798.06,0.00027671,7]
[388335579,1759103447286,-480.0,0.00027671,7]
[388335582,1759103447295,-480.0,0.00027671,7]
[388335583,1759103447304,-561.5,0.00027671,7]
[388335585,1759103447313,-567.64,0.00027671,7]
[388335587,1759103447322,-2153.55,0.00027671,7]
[388335589,1759103447331,-529.57,0.00027671,7]
[388335591,1759103447339,-786.13,0.00027671,7]
[388335593,1759103447348,-480.0,0.00027671,7]
[388335594,1759103447358,-480.0,0.00027671,7]
[388335596,1759103447367,-1029.38,0.00027671,7]
[388335598,1759103447375,-2515.29,0.00027671,7]
[388335600,1759103447384,-3871.47,0.00027671,7]
[388335602,1759103447393,-151.0,0.00027671,7]
[388335604,1759103447403,-3379.94,0.00027671,7]
[388335606,1759103447412,-480.0,0.00027671,7]
[388335608,1759103447421,-914.13,0.00027671,7]
[388335610,1759103447430,-480.0,0.00027671,7]
[388335612,1759103447439,-480.0,0.00027671,7]
[388335614,1759103447448,-480.0,0.00027671,7]
[388335616,1759103447457,-480.0,0.00027671,7]
[388335618,1759103447466,-579.59,0.00027671,7]
[388335620,1759103447475,-1006.61,0.00027671,7]
[388335622,1759103447484,-220.79,0.00027671,7]
[388335624,1759103447494,-856.16,0.00027671,7]
[388335626,1759103447504,-480.0,0.00027671,7]
[388335628,1759103447513,-480.0,0.00027671,7]
[388335630,1759103447522,-4097.81,0.00027671,7]
[388335632,1759103447532,-856.58,0.00027671,7]
[388335635,1759103447541,-633.61,0.00027671,7]
[388335636,1759103447550,-480.0,0.00027671,7]
[388335638,1759103447559,-520.78,0.00027671,7]
[388335640,1759103447568,-679.56,0.00027671,7]
[388335642,1759103447577,-1848.01,0.00027671,7]
[388335644,1759103447586,-511.0,0.00027671,7]
[388335646,1759103447595,-809.94,0.00027671,7]
[388335648,1759103447605,-480.0,0.00027671,7]
[388335650,1759103447614,-17932.03,0.00027671,7]
[388335652,1759103447623,-1780.76,0.00027671,7]
[388335654,1759103447631,-480.0,0.00027671,7]
[388335656,1759103447640,-482.70656843,0.00027671,7]
[388335658,1759103447650,-480.0,0.00027671,7]
[388335660,1759103447659,-1480.41,0.00027671,7]
[388335662,1759103447668,-480.0,0.00027671,7]
[388335664,1759103447677,-480.0,0.00027671,7]
[388335666,1759103447686,-480.0,0.00027671,7]
[388335668,1759103447695,-480.0,0.00027671,7]
[388335686,1759103447854,-480.0,0.00027671,7]
[388335688,1759103447863,-480.0,0.00027671,7]
[388335690,1759103447873,-1205.36,0.00027671,7]
[388335692,1759103447883,-931.56,0.00027671,7]
[388335694,1759103447897,-480.0,0.00027671,7]
[388335696,1759103447907,-504.55,0.00027671,7]
[388335698,1759103447916,-744.16,0.00027671,7]
[388335700,1759103447924,-480.0,0.00027671,7]
[388335702,1759103447936,-670.0,0.00027671,7]
[388335704,1759103447944,-480.0,0.00027671,7]
[388335706,1759103447955,-480.0,0.00027671,7]
[388335708,1759103447966,-891.42,0.00027671,7]
[388335710,1759103447975,-480.0,0.00027671,7]
[388335712,1759103447984,-1145.19,0.00027671,7]
[388335714,1759103447993,-822.23,0.00027671,7]
[388335716,1759103448002,-480.0,0.00027671,7]
[388335718,1759103448011,-480.0,0.00027671,7]
[388335720,1759103448020,-913.52,0.00027671,7]
[388335722,1759103448029,-732.15,0.00027671,7]
[388335724,1759103448038,-480.0,0.00027671,7]
[388335726,1759103448047,-710.86,0.00027671,7]
[388335728,1759103448056,-5066.22,0.00027671,7]
[388335730,1759103448066,-8442.79,0.00027671,7]
[388335732,1759103448075,-860.51,0.00027671,7]
[388335734,1759103448084,-1010.12,0.00027671,7]
[388335736,1759103448094,-480.0,0.00027671,7]
[388335738,1759103448103,-487.25,0.00027671,7]
[388335740,1759103448112,-1363.68,0.00027671,7]
[388335742,1759103448121,-1631.21,0.00027671,7]
[388335744,1759103448130,-10000.0,0.00027671,7]
[388335746,1759103448139,-1604.48,0.00027671,7]
[388335748,1759103448148,-745.45,0.00027671,7]
[388335750,1759103448158,-480.0,0.00027671,7]
[388335752,1759103448167,-10000.0,0.00027671,7]
[388335754,1759103448176,-480.0,0.00027671,7]
[388335756,1759103448185,-1420.83,0.00027671,7]
[388335758,1759103448194,-10000.0,0.00027671,7]
[388335760,1759103448203,-4153.65,0.00027671,7]
[388335762,1759103448212,-285.35050861,0.00027671,7]
[388335764,1759103448221,-10000.0,0.00027671,7]
[388335766,1759103448230,-1332.06,0.00027671,7]
[388335768,1759103448239,-1051.49,0.00027671,7]
[388335770,1759103448249,-480.0,0.00027671,7]
[388335772,1759103448257,-480.0,0.00027671,7]
[388335774,1759103448266,-480.0,0.00027671,7]
[388335776,1759103448275,-924.01,0.00027671,7]
[388335778,1759103448284,-480.0,0.00027671,7]
[388335780,1759103448293,-480.0,0.00027671,7]
[388335782,1759103448302,-1972.12,0.00027671,7]
[388335784,1759103448311,-515.24082708,0.00027671,7]
[388335786,1759103448320,-480.0,0.00027671,7]
[388335788,1759103448330,-151.0,0.00027671,7]
[388335790,1759103448339,-151.0,0.00027671,7]
[388335792,1759103448348,-480.0,0.00027671,7]
[388335794,1759103448356,-2285.6,0.00027671,7]
[388335796,1759103448365,-480.0,0.00027671,7]
[388335798,1759103448374,-586.8,0.00027671,7]
[388335800,1759103448384,-480.0,0.00027671,7]
[388335802,1759103448393,-480.0,0.00027671,7]
[388335804,1759103448402,-4195.97,0.00027671,7]
[388335806,1759103448411,-151.0,0.00027671,7]
[388335808,1759103448420,-151.0,0.00027671,7]
[388335810,1759103448429,-480.0,0.00027671,7]
[388335812,1759103448438,-2449.48,0.00027671,7]
[388335813,1759103448447,-480.0,0.00027671,7]
[388335816,1759103448456,-480.0,0.00027671,7]
[388335818,1759103448466,-480.0,0.00027671,7]
[388335820,1759103448474,-151.0,0.00027671,7]
[388335821,1759103448483,-151.0,0.00027671,7]
[388335822,1759103448492,-778.87,0.00027671,7]
[388335823,1759103448501,-4478.81,0.00027671,7]
[388335824,1759103448510,-910.42,0.00027671,7]
[388335825,1759103448519,-527.49,0.00027671,7]
[388335826,1759103448528,-151.0,0.00027671,7]
[388335827,1759103448537,-151.0,0.00027671,7]
[388335828,1759103448547,-591.15,0.00027671,7]
[388335830,1759103448556,-480.0,0.00027671,7]
[388335831,1759103448566,-917.77,0.00027671,7]
[388335833,1759103448575,-480.0,0.00027671,7]
[388335834,1759103448584,-480.0,0.00027671,7]
[388335835,1759103448593,-1171.37,0.00027671,7]
[388335836,1759103448603,-781.16,0.00027671,7]
[388335837,1759103448612,-480.0,0.00027671,7]
[388335838,1759103448621,-2238.12,0.00027671,7]
[388335839,1759103448630,-751.04,0.00027671,7]
[388335840,1759103448639,-1674.84,0.00027671,7]
[388335841,1759103448648,-907.39,0.00027671,7]
[388335842,1759103448657,-480.0,0.00027671,7]
[388335843,1759103448667,-804.33,0.00027671,7]
[388335844,1759103448676,-515.97,0.00027671,7]
[388335845,1759103448685,-480.0,0.00027671,7]
[388335846,1759103448694,-418.4501889,0.00027671,7]
[388335847,1759103448703,-550.6,0.00027671,7]
[388335848,1759103448712,-1087.13,0.00027671,7]
[388335849,1759103448722,-480.0,0.00027671,7]
[388335850,1759103448731,-480.0,0.00027671,7]
[388335851,1759103448741,-1024.34,0.00027671,7]
[388335852,1759103448750,-2128.47,0.00027671,7]
[388335853,1759103448759,-4005.13,0.00027671,7]
[388335854,1759103448768,-480.0,0.00027671,7]
[388335855,1759103448778,-480.0,0.00027671,7]
[388335856,1759103448787,-814.41,0.00027671,7]
[388335857,1759103448795,-2378.25,0.00027671,7]
[388335858,1759103448804,-883.22,0.00027671,7]
[388335859,1759103448812,-946.93,0.00027671,7]
[388335860,1759103448822,-480.0,0.00027671,7]
[388335861,1759103448831,-480.0,0.00027671,7]
[388335862,1759103448840,-480.0,0.00027671,7]
[388335863,1759103448848,-896.6,0.00027671,7]
[388335864,1759103448858,-621.58,0.00027671,7]
[388335865,1759103448868,-960.54,0.00027671,7]
[388335866,1759103448877,-1440.77,0.00027671,7]
[388335867,1759103448887,-480.0,0.00027671,7]
[388335868,1759103448900,-1114.7,0.00027671,7]
[388335869,1759103448909,-837.34,0.00027671,7]
[388335870,1759103448918,-1118.59,0.00027671,7]
[388335871,1759103448927,-480.0,0.00027671,7]
[388335872,1759103448936,-480.0,0.00027671,7]
[388335873,1759103448945,-480.0,0.00027671,7]
[388335874,1759103448954,-2042.54,0.00027671,7]
[388335875,1759103448963,-3723.77,0.00027671,7]
[388335876,1759103448972,-480.0,0.00027671,7]
[388335877,1759103448980,-630.92,0.00027671,7]
[388335878,1759103448990,-480.0,0.00027671,7]
[388335879,1759103448998,-480.0,0.00027671,7]
[388335880,1759103449007,-1253.14,0.00027671,7]
[388335881,1759103449015,-993.07,0.00027671,7]
[388335882,1759103449024,-480.0,0.00027671,7]
[388335883,1759103449033,-480.0,0.00027671,7]
[388335884,1759103449042,-490.68,0.00027671,7]
[388335885,1759103449051,-480.0,0.00027671,7]
[388335886,1759103449060,-544.66,0.00027671,7]
[388335887,1759103449069,-480.0,0.00027671,7]
[388335888,1759103449078,-1643.84,0.00027671,7]
[388335889,1759103449086,-480.0,0.00027671,7]
[388335890,1759103449096,-749.39,0.00027671,7]
[388335891,1759103449105,-7552.47,0.00027671,7]
[388335892,1759103449114,-480.0,0.00027671,7]
[388335893,1759103449123,-480.0,0.00027671,7]
[388335894,1759103449133,-5346.94,0.00027671,7]
[388335895,1759103449142,-480.0,0.00027671,7]
[388335896,1759103449151,-480.0,0.00027671,7]
[388335897,1759103449160,-276.60856172,0.00027671,7]
[388335898,1759103449170,-637.13,0.00027671,7]
[388335899,1759103449179,-797.93,0.00027671,7]
[388335900,1759103449189,-480.0,0.00027671,7]
[388335901,1759103449198,-480.0,0.00027671,7]
[388335902,1759103449207,-480.0,0.00027671,7]
[388335903,1759103449216,-480.0,0.00027671,7]
[388335904,1759103449224,-480.0,0.00027671,7]
[388335905,1759103449233,-151.0,0.000277,16]
[388335906,1759103449243,-151.0,0.000277,11]
[388335907,1759103449252,-472.91543858,0.00027719,2]
[388335908,1759103449260,-8264.44788822,0.00027734,2]
[388335909,1759103449270,-339.778,0.00027796,17]
[388335910,1759103449279,-151.0,0.000278,19]
[388335911,1759103449289,-480.0,0.00027831,7]
[388335912,1759103449298,-785.37,0.00027831,7]
[388335913,1759103449308,-1605.3,0.00027831,7]
[388335914,1759103449317,-480.0,0.00027831,7]
[388335915,1759103449326,-480.0,0.00027831,7]
[388335916,1759103449335,-3534.31,0.00027831,7]
[388335917,1759103449344,-1260.8,0.00027831,7]
[388335918,1759103449353,-480.0,0.00027831,7]
[388335919,1759103449362,-3095.13480964,0.00027834,2]
[388335920,1759103449371,-480.0,0.00027834,7]
[388335921,1759103449380,-480.0,0.00027834,7]
[388335922,1759103449389,-480.0,0.00027834,7]
[388335923,1759103449398,-480.0,0.00027834,7]
[388335924,1759103449407,-480.0,0.00027834,7]
[388335925,1759103449416,-480.0,0.00027834,7]
[388335926,1759103449425,-480.0,0.00027834,7]
[388335927,1759103449434,-480.0,0.00027834,7]
[388335928,1759103449444,-480.0,0.00027834,7]
[388335929,1759103449454,-480.0,0.00027834,7]
[388335930,1759103449463,-480.0,0.00027834,7]
[388335931,1759103449472,-480.0,0.00027834,7]
[388335932,1759103449481,-480.0,0.00027834,7]
[388335933,1759103449490,-480.0,0.00027834,7]
[388335934,1759103449498,-480.0,0.00027834,7]
[388335935,1759103449507,-151.0,0.00027834,7]
[388335936,1759103449516,-480.0,0.00027834,7]
[388335937,1759103449525,-480.0,0.00027834,7]
[388335938,1759103449533,-480.0,0.00027834,7]
[388335939,1759103449542,-520.0,0.00027834,3]
[388335940,1759103449551,-480.0,0.00027834,7]
[388335941,1759103449561,-480.0,0.00027834,7]
[388335942,1759103449571,-480.0,0.00027834,7]
[388335943,1759103449579,-480.0,0.00027834,7]
[388335944,1759103449590,-480.0,0.00027834,7]
[388335945,1759103449599,-612.03,0.00027834,7]
[388335946,1759103449608,-940.35,0.00027834,7]
[388335947,1759103449617,-595.5,0.00027834,7]
[388335948,1759103449626,-610.79,0.00027834,7]
[388335949,1759103449635,-480.0,0.00027834,7]
[388335950,1759103449644,-480.0,0.00027834,7]
[388335951,1759103449653,-480.0,0.00027834,7]
[388335952,1759103449662,-480.0,0.00027834,7]
[388335953,1759103449671,-525.75,0.00027834,7]
[388335954,1759103449680,-480.0,0.00027834,7]
[388335955,1759103449689,-588.26,0.00027834,7]
[388335956,1759103449699,-480.0,0.00027834,7]
[388335957,1759103449708,-480.0,0.00027834,7]
[388335958,1759103449717,-1140.09,0.00027834,7]
[388335959,1759103449726,-895.46,0.00027834,7]
[388335960,1759103449735,-2831.62,0.00027834,7]
[388335961,1759103449744,-839.88,0.00027834,7]
[388335962,1759103449752,-986.35,0.00027834,7]
[388335963,1759103449762,-692.74,0.00027834,7]
[388335964,1759103449771,-549.15,0.00027834,7]
[388335965,1759103449780,-480.0,0.00027834,7]
[388335966,1759103449789,-480.0,0.00027834,7]
[388335967,1759103449798,-480.0,0.00027834,7]
[388335968,1759103449806,-506.52,0.00027834,7]
[388335969,1759103449816,-480.0,0.00027834,7]
[388335970,1759103449825,-3139.08,0.00027834,7]
[388335971,1759103449834,-919.0,0.00027834,7]